[Event "Speed Chess Championship 2020"]
[Site "Online"]
[Date "2020.11.08"]
[Round "1.20"]
[White "Abdusattorov, Nodirbek"]
[Black "So, Wesley"]
[Result "0-1"]
[ECO "C45"]
[WhiteElo "2662"]
[BlackElo "2816"]
[Annotator "RC"]
[PlyCount "116"]
[EventDate "2020.10.31"]
[EventType "k.o."]
[SourceTitle "playchess.com"]
[Source "ChessBase"]
[SourceQuality "1"]
[TimeControl "60+1"]

1. e4 {[%emt 0:00:01]} e5 {[%emt 0:00:02]} 2. Nf3 {[%emt 0:00:00]} Nc6 {[%emt 0:00:03]} 3. d4 {[%emt 0:00:01]} exd4 {[%emt 0:00:01]} 4. Nxd4 {[%emt 0:00:00]} Nf6 {[%emt 0:00:01]} 5. Nxc6 {[%emt 0:00:01]} bxc6 {[%emt 0:00:00]} 6. e5 {[%emt 0:00:00]} Qe7 {[%emt 0:00:00]} 7. Qe2 {[%emt 0:00:01]} Nd5 {[%emt 0:00:01]} 8. h4 {[%emt 0:00:00]} Qe6 {[%emt 0:00:01]} 9. g3 {[%emt 0:00:01]} f6 {[%emt 0:00:02]} 10. exf6 {[%emt 0:00:04]} Qxe2+ {[%emt 0:00:01]} 11. Bxe2 {[%emt 0:00:00]} Nxf6 {[%emt 0:00:01]} 12. c4 {[%emt 0:00:02]} Bb7 {[%emt 0:00:02]} 13. Nc3 {[%emt 0:00:01]} O-O-O {[%emt 0:00:02]} 14. Be3 {[%emt 0:00:02]} Re8 {[%emt 0:00:01]} 15. O-O-O {[%emt 0:00:02]} c5 {[%emt 0:00:02]} 16. Rhe1 {[%emt 0:00:01]} Bc6 {[%emt 0:00:02]} 17. b3 {[%emt 0:00:02]} g6 {[%emt 0:00:02]} 18. Kc2 {[%emt 0:00:04]} d6 {[%emt 0:00:01]} 19. Bc1 {[%emt 0:00:09]} Bg7 {[%emt 0:00:01]} 20. Bb2 {[%emt 0:00:01]} Rhf8 {[%emt 0:00:03]} 21. f4 {[%emt 0:00:02]} Nh5 {[%emt 0:00:04]} 22. Bxh5 {[%emt 0:00:05]} gxh5 {[%emt 0:00:00]} 23. Nd5 {[%emt 0:00:06]} Bxb2 {[%emt 0:00:04]} 24. Kxb2 {[%emt 0:00:00]} Bxd5 {[%emt 0:00:03]} 25. Rxe8+ {[%emt 0:00:01]} Rxe8 {[%emt 0:00:00]} 26. Rxd5 {[%emt 0:00:01]} Re2+ {[%emt 0:00:02]} 27. Ka3 {[%emt 0:00:01]} Re3 {[%emt 0:00:01]} 28. Rg5 {[%emt 0:00:02]} Kb7 {[%emt 0:00:03]} 29. f5 {[%emt 0:00:01]} Rf3 {[%emt 0:00:01]} 30. Rxh5 {[%emt 0:00:02]} Rxg3 {[%emt 0:00:01]} 31. Rxh7 {[%emt 0:00:00]} Rf3 {[%emt 0:00:01]} 32. Rh5 {[%emt 0:00:04]} Rf4 {[%emt 0:00:01]} 33. Kb2 {[%emt 0:00:02]} Rf2+ {[%emt 0:00:01]} 34. Kc3 {[%emt 0:00:00]} Rxa2 {[%emt 0:00:00]} 35. Rg5 {[%emt 0:00:01]} Rh2 {[%emt 0:00:05]} 36. h5 {[%emt 0:00:01]} Kc6 {[%emt 0:00:01]} 37. f6 {[%emt 0:00:01]} Rh3+ {[%emt 0:00:01]} 38. Kd2 {[%emt 0:00:02]} Kd7 {[%emt 0:00:01]} 39. Rg7+ {[%emt 0:00:03]} Ke6 {[%emt 0:00:01]} 40. f7 {[%emt 0:00:03]} Ke7 {[%emt 0:00:01]} 41. Rh7 {[%emt 0:00:01]} Rxb3 {[%emt 0:00:04]} 42. h6 {[%emt 0:00:04]} Rh3 {[%emt 0:00:01]} 43. Ke2 {[%emt 0:00:02]} a5 {[%emt 0:00:01]} 44. Kf2 {[%emt 0:00:01]} a4 {[%emt 0:00:01]} 45. Kg2 {[%emt 0:00:00]} Rh5 {[%emt 0:00:01]} 46. f8=Q+ {[%emt 0:00:06]} Kxf8 {[%emt 0:00:01]} 47. Rxc7 {[%emt 0:00:00]} Rxh6 {[%emt 0:00:03]} 48. Ra7 {[%emt 0:00:00]} Rh4 {[%emt 0:00:02]} 49. Rxa4 {[%emt 0:00:01]} Ke7 {[%emt 0:00:01]} 50. Kf3 {[%emt 0:00:02]} Ke6 {[%emt 0:00:01]} 51. Ke3 {[%emt 0:00:03]} Rd4 {[%emt 0:00:02]} 52. Ke2 {[%emt 0:00:03]} Kf5 {[%emt 0:00:01]} 53. Ke3 {[%emt 0:00:02]} Ke5 {[%emt 0:00:00]} 54. Ke2 {[%emt 0:00:03]} Ke6 {[%emt 0:00:03]} 55. Ke3 {[%emt 0:00:01]} Ke5 {[%emt 0:00:01]} 56. Ke2 {[%emt 0:00:01]} d5 {[%emt 0:00:00]} 57. Ra5 {[%emt 0:00:09]} Rxc4 {[%emt 0:00:02]} 58. Kd3 {[%emt 0:00:00]} Rd4+ {[%emt 0:00:03]} 0-1

[Event "Speed Chess Championship 2020"]
[Site "Online"]
[Date "2020.11.08"]
[Round "1.21"]
[White "So, Wesley"]
[Black "Abdusattorov, Nodirbek"]
[Result "1-0"]
[ECO "B10"]
[WhiteElo "2816"]
[BlackElo "2662"]
[Annotator "ChessBase"]
[PlyCount "91"]
[EventDate "2020.10.31"]
[EventType "k.o."]
[SourceTitle "playchess.com"]
[Source "ChessBase"]
[SourceQuality "1"]
[TimeControl "60+1"]

1. e4 {[%emt 0:00:01]} c6 {[%emt 0:00:01]} 2. Nf3 {[%emt 0:00:00]} d5 {[%emt 0:00:00]} 3. d3 {[%emt 0:00:00]} Qc7 {[%emt 0:00:01]} 4. e5 {[%emt 0:00:03]} Bg4 {[%emt 0:00:02]} 5. d4 {[%emt 0:00:01]} e6 {[%emt 0:00:01]} 6. Nbd2 {[%emt 0:00:02]} c5 {[%emt 0:00:00]} 7. h3 {[%emt 0:00:01]} Bxf3 {[%emt 0:00:01]} 8. Nxf3 {[%emt 0:00:00]} cxd4 {[%emt 0:00:00]} 9. Bb5+ {[%emt 0:00:01]} Nc6 {[%emt 0:00:01]} 10. O-O {[%emt 0:00:01]} Bc5 {[%emt 0:00:01]} 11. Nxd4 {[%emt 0:00:02]} Nge7 {[%emt 0:00:01]} 12. Be3 {[%emt 0:00:01]} Bb6 {[%emt 0:00:01]} 13. c3 {[%emt 0:00:04]} Qxe5 {[%emt 0:00:03]} 14. Re1 {[%emt 0:00:05]} Qf6 {[%emt 0:00:02]} 15. Qg4 {[%emt 0:00:09]} O-O {[%emt 0:00:04]} 16. Bg5 {[%emt 0:00:09]} Qg6 {[%emt 0:00:01]} 17. Rad1 {[%emt 0:00:01]} h6 {[%emt 0:00:07]} 18. Bxe7 {[%emt 0:00:06]} Qxg4 {[%emt 0:00:00]} 19. hxg4 {[%emt 0:00:00]} Nxe7 {[%emt 0:00:00]} 20. f4 {[%emt 0:00:02]} Rad8 {[%emt 0:00:03]} 21. f5 {[%emt 0:00:01]} Rd6 {[%emt 0:00:05]} 22. Kh2 {[%emt 0:00:02]} Bc7 {[%emt 0:00:04]} 23. Kh3 {[%emt 0:00:02]} a6 {[%emt 0:00:17]} 24. Ba4 {[%emt 0:00:02]} Rb6 {[%emt 0:00:03]} 25. fxe6 {[%emt 0:00:02]} fxe6 {[%emt 0:00:06]} 26. Nxe6 {[%emt 0:00:02]} Rc8 {[%emt 0:00:18]} 27. Bd7 {[%emt 0:00:01]} Bd6 {[%emt 0:00:00]} 28. Bxc8 {[%emt 0:00:01]} Nxc8 {[%emt 0:00:01]} 29. Nd4 {[%emt 0:00:03]} Ne7 {[%emt 0:00:00]} 30. b3 {[%emt 0:00:01]} Ng6 {[%emt 0:00:00]} 31. g3 {[%emt 0:00:01]} Be5 {[%emt 0:00:02]} 32. Rd3 {[%emt 0:00:02]} Rf6 {[%emt 0:00:01]} 33. Nf5 {[%emt 0:00:01]} Rc6 {[%emt 0:00:02]} 34. Ree3 {[%emt 0:00:03]} Bf6 {[%emt 0:00:02]} 35. Rxd5 {[%emt 0:00:02]} Kh7 {[%emt 0:00:02]} 36. c4 {[%emt 0:00:01]} b5 {[%emt 0:00:01]} 37. cxb5 {[%emt 0:00:01]} axb5 {[%emt 0:00:00]} 38. Rxb5 {[%emt 0:00:00]} Rc2 {[%emt 0:00:01]} 39. a4 {[%emt 0:00:01]} Nf8 {[%emt 0:00:01]} 40. a5 {[%emt 0:00:01]} Kg6 {[%emt 0:00:01]} 41. Nh4+ {[%emt 0:00:03]} Kf7 {[%emt 0:00:01]} 42. Nf3 {[%emt 0:00:01]} Nh7 {[%emt 0:00:02]} 43. b4 {[%emt 0:00:01]} Ra2 {[%emt 0:00:02]} 44. Rb7+ {[%emt 0:00:02]} Kg6 {[%emt 0:00:01]} 45. Nh4+ {[%emt 0:00:01]} Kg5 {[%emt 0:00:00]} 46. Rf3 {[%emt 0:00:02]} 1-0

[Event "Speed Chess Championship 2020"]
[Site "Online"]
[Date "2020.11.04"]
[Round "1.21"]
[White "Firouzja, Alireza"]
[Black "Fedoseev, Vladimir"]
[Result "1-0"]
[ECO "D78"]
[WhiteElo "2749"]
[BlackElo "2676"]
[Annotator "ChessBase"]
[PlyCount "133"]
[EventDate "2020.10.31"]
[EventType "k.o."]
[SourceTitle "playchess.com"]
[Source "ChessBase"]
[SourceQuality "1"]
[TimeControl "60+1"]

1. Nf3 {[%emt 0:00:01]} Nf6 {[%emt 0:00:01]} 2. g3 {[%emt 0:00:00]} g6 {[%emt 0:00:00]} 3. Bg2 {[%emt 0:00:01]} Bg7 {[%emt 0:00:00]} 4. O-O {[%emt 0:00:00]} O-O {[%emt 0:00:00]} 5. d4 {[%emt 0:00:01]} d5 {[%emt 0:00:01]} 6. c4 {[%emt 0:00:01]} c6 {[%emt 0:00:00]} 7. Ne5 {[%emt 0:00:01]} Be6 {[%emt 0:00:00]} 8. cxd5 {[%emt 0:00:01]} Bxd5 {[%emt 0:00:01]} 9. Nf3 {[%emt 0:00:00]} Ne4 {[%emt 0:00:01]} 10. Qc2 {[%emt 0:00:02]} Nd7 {[%emt 0:00:01]} 11. Re1 {[%emt 0:00:00]} Ndf6 {[%emt 0:00:01]} 12. Ne5 {[%emt 0:00:05]} Rc8 {[%emt 0:00:18]} 13. f3 {[%emt 0:00:05]} Nd6 {[%emt 0:00:01]} 14. Bh3 {[%emt 0:00:07]} Nf5 {[%emt 0:00:16]} 15. Bxf5 {[%emt 0:00:15]} gxf5 {[%emt 0:00:01]} 16. Qxf5 {[%emt 0:00:01]} Be6 {[%emt 0:00:02]} 17. Qf4 {[%emt 0:00:01]} c5 {[%emt 0:00:02]} 18. dxc5 {[%emt 0:00:02]} Rxc5 {[%emt 0:00:01]} 19. Nd3 {[%emt 0:00:01]} Rc4 {[%emt 0:00:02]} 20. Qg5 {[%emt 0:00:05]} Qb6+ {[%emt 0:00:04]} 21. Be3 {[%emt 0:00:04]} h6 {[%emt 0:00:11]} 22. Qxg7+ {[%emt 0:00:03]} Kxg7 {[%emt 0:00:01]} 23. Bxb6 {[%emt 0:00:00]} axb6 {[%emt 0:00:00]} 24. Nc3 {[%emt 0:00:01]} Ra8 {[%emt 0:00:02]} 25. a3 {[%emt 0:00:01]} Nd7 {[%emt 0:00:03]} 26. Kf2 {[%emt 0:00:01]} Bf5 {[%emt 0:00:02]} 27. Rad1 {[%emt 0:00:04]} Bxd3 {[%emt 0:00:01]} 28. Rxd3 {[%emt 0:00:00]} Ne5 {[%emt 0:00:01]} 29. Rd5 {[%emt 0:00:01]} Rc5 {[%emt 0:00:03]} 30. Red1 {[%emt 0:00:02]} Nc4 {[%emt 0:00:01]} 31. Rxc5 {[%emt 0:00:06]} bxc5 {[%emt 0:00:00]} 32. Rd7 {[%emt 0:00:02]} b6 {[%emt 0:00:03]} 33. Nd1 {[%emt 0:00:10]} e6 {[%emt 0:00:01]} 34. Rb7 {[%emt 0:00:01]} Ra6 {[%emt 0:00:01]} 35. e4 {[%emt 0:00:03]} Kf8 {[%emt 0:00:03]} 36. Ke2 {[%emt 0:00:01]} h5 {[%emt 0:00:01]} 37. f4 {[%emt 0:00:01]} Nd6 {[%emt 0:00:01]} 38. Rb8+ {[%emt 0:00:01]} Ke7 {[%emt 0:00:00]} 39. Kd3 {[%emt 0:00:00]} Ra4 {[%emt 0:00:02]} 40. Nc3 {[%emt 0:00:03]} Rd4+ {[%emt 0:00:00]} 41. Kc2 {[%emt 0:00:01]} Nxe4 {[%emt 0:00:02]} 42. Rxb6 {[%emt 0:00:02]} Rd2+ {[%emt 0:00:00]} 43. Kc1 {[%emt 0:00:01]} Rd4 {[%emt 0:00:01]} 44. Nxe4 {[%emt 0:00:01]} Rxe4 {[%emt 0:00:00]} 45. Kd2 {[%emt 0:00:00]} Rd4+ {[%emt 0:00:02]} 46. Kc3 {[%emt 0:00:01]} h4 {[%emt 0:00:00]} 47. Rc6 {[%emt 0:00:01]} Re4 {[%emt 0:00:04]} 48. Rxc5 {[%emt 0:00:01]} hxg3 {[%emt 0:00:01]} 49. hxg3 {[%emt 0:00:01]} Re3+ {[%emt 0:00:00]} 50. Kb4 {[%emt 0:00:01]} Rxg3 {[%emt 0:00:00]} 51. a4 {[%emt 0:00:00]} Rf3 {[%emt 0:00:02]} 52. Rc4 {[%emt 0:00:01]} Rf1 {[%emt 0:00:02]} 53. a5 {[%emt 0:00:01]} Kd6 {[%emt 0:00:01]} 54. Kb5 {[%emt 0:00:02]} Ra1 {[%emt 0:00:02]} 55. a6 {[%emt 0:00:01]} Kd5 {[%emt 0:00:01]} 56. Ra4 {[%emt 0:00:03]} Rxa4 {[%emt 0:00:02]} 57. Kxa4 {[%emt 0:00:00]} Kc6 {[%emt 0:00:00]} 58. b4 {[%emt 0:00:00]} Kb6 {[%emt 0:00:01]} 59. b5 {[%emt 0:00:01]} f6 {[%emt 0:00:02]} 60. Kb4 {[%emt 0:00:00]} e5 {[%emt 0:00:00]} 61. fxe5 {[%emt 0:00:01]} fxe5 {[%emt 0:00:00]} 62. Kc4 {[%emt 0:00:00]} Ka7 {[%emt 0:00:02]} 63. Kd5 {[%emt 0:00:01]} Kb6 {[%emt 0:00:00]} 64. Kxe5 {[%emt 0:00:00]} Kc7 {[%emt 0:00:01]} 65. Kd5 {[%emt 0:00:01]} Kb6 {[%emt 0:00:00]} 66. Kd6 {[%emt 0:00:00]} Kxb5 {[%emt 0:00:01]} 67. a7 {[%emt 0:00:01]} 1-0

[Event "Speed Chess Championship 2020"]
[Site "Online"]
[Date "2020.11.15"]
[Round "1.21"]
[White "Duda, Jan-Krzysztof"]
[Black "Caruana, Fabiano"]
[Result "1-0"]
[ECO "E85"]
[WhiteElo "2743"]
[BlackElo "2823"]
[Annotator "ChessBase"]
[PlyCount "105"]
[EventDate "2020.10.31"]
[EventType "k.o."]
[EventCountry "NET"]
[SourceTitle "playchess.com"]
[Source "ChessBase"]
[SourceQuality "1"]
[TimeControl "60+1"]

1. d4 {[%emt 0:00:01]} Nf6 {[%emt 0:00:01]} 2. c4 {[%emt 0:00:00]} g6 {[%emt 0:00:00]} 3. Nc3 {[%emt 0:00:03]} d6 {[%emt 0:00:00]} 4. e4 {[%emt 0:00:01]} Bg7 {[%emt 0:00:01]} 5. f3 {[%emt 0:00:00]} O-O {[%emt 0:00:00]} 6. Be3 {[%emt 0:00:01]} Nc6 {[%emt 0:00:03]} 7. Nge2 {[%emt 0:00:01]} e5 {[%emt 0:00:01]} 8. Qd2 {[%emt 0:00:00]} a6 {[%emt 0:00:01]} 9. O-O-O {[%emt 0:00:02]} Rb8 {[%emt 0:00:02]} 10. d5 {[%emt 0:00:07]} Na5 {[%emt 0:00:01]} 11. Ng3 {[%emt 0:00:04]} b5 {[%emt 0:00:07]} 12. Bh6 {[%emt 0:00:01]} b4 {[%emt 0:00:12]} 13. Nb1 {[%emt 0:00:02]} Ne8 {[%emt 0:00:05]} 14. h4 {[%emt 0:00:03]} f5 {[%emt 0:00:02]} 15. Bg5 {[%emt 0:00:04]} Qd7 {[%emt 0:00:04]} 16. exf5 {[%emt 0:00:17]} gxf5 {[%emt 0:00:00]} 17. Nh5 {[%emt 0:00:01]} Qf7 {[%emt 0:00:23]} 18. Nxg7 {[%emt 0:00:01]} Nxg7 {[%emt 0:00:00]} 19. Bd3 {[%emt 0:00:03]} Bd7 {[%emt 0:00:01]} 20. h5 {[%emt 0:00:03]} Nb7 {[%emt 0:00:02]} 21. Qxb4 {[%emt 0:00:08]} Nc5 {[%emt 0:00:01]} 22. Qd2 {[%emt 0:00:01]} f4 {[%emt 0:00:01]} 23. Nc3 {[%emt 0:00:05]} Nf5 {[%emt 0:00:03]} 24. Rde1 {[%emt 0:00:07]} Nd4 {[%emt 0:00:02]} 25. Kb1 {[%emt 0:00:02]} Rb4 {[%emt 0:00:03]} 26. Ne4 {[%emt 0:00:02]} Rfb8 {[%emt 0:00:00]} 27. Nxc5 {[%emt 0:00:01]} Rxb2+ {[%emt 0:00:02]} 28. Qxb2 {[%emt 0:00:01]} Rxb2+ {[%emt 0:00:00]} 29. Kxb2 {[%emt 0:00:00]} dxc5 {[%emt 0:00:00]} 30. Rxe5 {[%emt 0:00:01]} Qf8 {[%emt 0:00:04]} 31. Rhe1 {[%emt 0:00:01]} Qb8+ {[%emt 0:00:00]} 32. Ka1 {[%emt 0:00:02]} Qb4 {[%emt 0:00:01]} 33. Re8+ {[%emt 0:00:04]} Bxe8 {[%emt 0:00:01]} 34. Rxe8+ {[%emt 0:00:00]} Kf7 {[%emt 0:00:00]} 35. Re7+ {[%emt 0:00:00]} Kf8 {[%emt 0:00:01]} 36. Bxh7 {[%emt 0:00:01]} Qxc4 {[%emt 0:00:04]} 37. Kb1 {[%emt 0:00:01]} Qb4+ {[%emt 0:00:00]} 38. Kc1 {[%emt 0:00:01]} Qc3+ {[%emt 0:00:01]} 39. Kd1 {[%emt 0:00:01]} Qa1+ {[%emt 0:00:01]} 40. Kd2 {[%emt 0:00:01]} Qxa2+ {[%emt 0:00:00]} 41. Kd3 {[%emt 0:00:01]} Qxg2 {[%emt 0:00:01]} 42. Bf6 {[%emt 0:00:02]} Qxf3+ {[%emt 0:00:00]} 43. Kc4 {[%emt 0:00:00]} Qxh5 {[%emt 0:00:02]} 44. Kxc5 {[%emt 0:00:02]} Nf5 {[%emt 0:00:01]} 45. Rxc7 {[%emt 0:00:01]} Qh6 {[%emt 0:00:03]} 46. Be5 {[%emt 0:00:01]} Ne7 {[%emt 0:00:01]} 47. d6 {[%emt 0:00:01]} Qxh7 {[%emt 0:00:02]} 48. dxe7+ {[%emt 0:00:02]} Ke8 {[%emt 0:00:01]} 49. Rc8+ {[%emt 0:00:00]} Kxe7 {[%emt 0:00:03]} 50. Rc7+ {[%emt 0:00:01]} Ke6 {[%emt 0:00:00]} 51. Rxh7 {[%emt 0:00:00]} Kxe5 {[%emt 0:00:00]} 52. Re7+ {[%emt 0:00:01]} Kf5 {[%emt 0:00:00]} 53. Kd4 {[%emt 0:00:01]} 1-0

[Event "Speed Chess Championship 2020"]
[Site "Online"]
[Date "2020.11.12"]
[Round "1.21"]
[White "Nakamura, Hikaru"]
[Black "Martirosyan, Haik M."]
[Result "1/2-1/2"]
[ECO "E21"]
[WhiteElo "2736"]
[BlackElo "2622"]
[Annotator "ChessBase"]
[PlyCount "92"]
[EventDate "2020.10.31"]
[EventType "k.o."]
[SourceTitle "playchess.com"]
[Source "ChessBase"]
[SourceQuality "1"]
[TimeControl "60+1"]

1. d4 {[%emt 0:00:01]} Nf6 {[%emt 0:00:01]} 2. Nf3 {[%emt 0:00:00]} e6 {[%emt 0:00:00]} 3. c4 {[%emt 0:00:02]} b6 {[%emt 0:00:00]} 4. Nc3 {[%emt 0:00:00]} Bb7 {[%emt 0:00:01]} 5. g3 {[%emt 0:00:01]} Bb4 {[%emt 0:00:02]} 6. Bg2 {[%emt 0:00:00]} O-O {[%emt 0:00:01]} 7. O-O {[%emt 0:00:01]} Bxc3 {[%emt 0:00:01]} 8. bxc3 {[%emt 0:00:00]} h6 {[%emt 0:00:01]} 9. Re1 {[%emt 0:00:02]} Be4 {[%emt 0:00:01]} 10. Bh3 {[%emt 0:00:01]} d5 {[%emt 0:00:02]} 11. Nd2 {[%emt 0:00:00]} Bg6 {[%emt 0:00:02]} 12. f3 {[%emt 0:00:01]} c5 {[%emt 0:00:02]} 13. dxc5 {[%emt 0:00:00]} bxc5 {[%emt 0:00:01]} 14. cxd5 {[%emt 0:00:00]} exd5 {[%emt 0:00:00]} 15. c4 {[%emt 0:00:02]} d4 {[%emt 0:00:02]} 16. Nb3 {[%emt 0:00:02]} Nbd7 {[%emt 0:00:08]} 17. Ba3 {[%emt 0:00:01]} Qc7 {[%emt 0:00:03]} 18. e3 {[%emt 0:00:01]} d3 {[%emt 0:00:02]} 19. e4 {[%emt 0:00:01]} Ne5 {[%emt 0:00:00]} 20. Nd2 {[%emt 0:00:00]} Bh5 {[%emt 0:00:02]} 21. g4 {[%emt 0:00:06]} Qd7 {[%emt 0:00:08]} 22. Bb2 {[%emt 0:00:02]} Ng6 {[%emt 0:00:04]} 23. Bxf6 {[%emt 0:00:04]} gxf6 {[%emt 0:00:01]} 24. Bf1 {[%emt 0:00:01]} Nf4 {[%emt 0:00:02]} 25. gxh5 {[%emt 0:00:01]} Kh8 {[%emt 0:00:01]} 26. Nb3 {[%emt 0:00:07]} Rg8+ {[%emt 0:00:02]} 27. Kh1 {[%emt 0:00:01]} Rg5 {[%emt 0:00:02]} 28. Qd2 {[%emt 0:00:02]} Rag8 {[%emt 0:00:01]} 29. Qf2 {[%emt 0:00:02]} Rxh5 {[%emt 0:00:10]} 30. Rad1 {[%emt 0:00:02]} Qe7 {[%emt 0:00:03]} 31. Nc1 {[%emt 0:00:04]} Qc7 {[%emt 0:00:07]} 32. e5 {[%emt 0:00:04]} fxe5 {[%emt 0:00:04]} 33. Nxd3 {[%emt 0:00:01]} Ne6 {[%emt 0:00:01]} 34. Re4 {[%emt 0:00:03]} f5 {[%emt 0:00:02]} 35. Rxe5 {[%emt 0:00:00]} Nd4 {[%emt 0:00:02]} 36. Rde1 {[%emt 0:00:07]} Qg7 {[%emt 0:00:03]} 37. Re7 {[%emt 0:00:10]} Qg5 {[%emt 0:00:00]} 38. Ne5 {[%emt 0:00:03]} Qxe7 {[%emt 0:00:06]} 39. Ng6+ {[%emt 0:00:01]} Rxg6 {[%emt 0:00:00]} 40. Rxe7 {[%emt 0:00:00]} Rhg5 {[%emt 0:00:03]} 41. Qe3 {[%emt 0:00:01]} Nxf3 {[%emt 0:00:01]} 42. Re8+ {[%emt 0:00:05]} Kh7 {[%emt 0:00:00]} 43. Re7+ {[%emt 0:00:02]} Kh8 {[%emt 0:00:01]} 44. Re8+ {[%emt 0:00:14]} Kh7 {[%emt 0:00:00]} 45. Re7+ {[%emt 0:00:01]} Kg8 {[%emt 0:00:01]} 46. Re8+ {[%emt 0:00:01]} Kh7 {[%emt 0:00:00]} 1/2-1/2

[Event "Speed Chess Championship 2020"]
[Site "Online"]
[Date "2020.11.16"]
[Round "1.21"]
[White "Artemiev, Vladislav"]
[Black "Giri, Anish"]
[Result "1/2-1/2"]
[ECO "A12"]
[WhiteElo "2708"]
[BlackElo "2764"]
[Annotator "ChessBase"]
[PlyCount "107"]
[EventDate "2020.10.31"]
[EventType "k.o."]
[EventCountry "NET"]
[SourceTitle "playchess.com"]
[Source "ChessBase"]
[SourceQuality "1"]
[TimeControl "60+1"]

1. b3 {[%emt 0:00:01]} d5 {[%emt 0:00:01]} 2. Bb2 {[%emt 0:00:00]} Bf5 {[%emt 0:00:00]} 3. Nf3 {[%emt 0:00:01]} e6 {[%emt 0:00:01]} 4. g3 {[%emt 0:00:00]} Nf6 {[%emt 0:00:02]} 5. Bg2 {[%emt 0:00:00]} h6 {[%emt 0:00:00]} 6. O-O {[%emt 0:00:01]} Be7 {[%emt 0:00:01]} 7. c4 {[%emt 0:00:00]} c6 {[%emt 0:00:01]} 8. d3 {[%emt 0:00:01]} O-O {[%emt 0:00:01]} 9. Nbd2 {[%emt 0:00:00]} Nbd7 {[%emt 0:00:01]} 10. a3 {[%emt 0:00:01]} a5 {[%emt 0:00:01]} 11. Qc2 {[%emt 0:00:00]} Re8 {[%emt 0:00:00]} 12. Bc3 {[%emt 0:00:02]} Bd6 {[%emt 0:00:04]} 13. b4 {[%emt 0:00:04]} axb4 {[%emt 0:00:05]} 14. axb4 {[%emt 0:00:01]} e5 {[%emt 0:00:03]} 15. e4 {[%emt 0:00:02]} Bh7 {[%emt 0:00:06]} 16. Rxa8 {[%emt 0:00:02]} Qxa8 {[%emt 0:00:01]} 17. Ra1 {[%emt 0:00:01]} Qb8 {[%emt 0:00:02]} 18. cxd5 {[%emt 0:00:22]} cxd5 {[%emt 0:00:01]} 19. exd5 {[%emt 0:00:01]} Nxd5 {[%emt 0:00:02]} 20. Qb3 {[%emt 0:00:00]} Nxc3 {[%emt 0:00:04]} 21. Qxc3 {[%emt 0:00:01]} Nf6 {[%emt 0:00:05]} 22. Qb3 {[%emt 0:00:01]} e4 {[%emt 0:00:02]} 23. dxe4 {[%emt 0:00:01]} Nxe4 {[%emt 0:00:01]} 24. Nxe4 {[%emt 0:00:04]} Bxe4 {[%emt 0:00:00]} 25. Rd1 {[%emt 0:00:01]} Bf8 {[%emt 0:00:03]} 26. h3 {[%emt 0:00:00]} Qc7 {[%emt 0:00:03]} 27. Ne1 {[%emt 0:00:03]} b5 {[%emt 0:00:09]} 28. Bxe4 {[%emt 0:00:10]} Rxe4 {[%emt 0:00:01]} 29. Nd3 {[%emt 0:00:01]} Rd4 {[%emt 0:00:05]} 30. Re1 {[%emt 0:00:17]} Qc4 {[%emt 0:00:07]} 31. Qxc4 {[%emt 0:00:00]} bxc4 {[%emt 0:00:01]} 32. Ne5 {[%emt 0:00:00]} c3 {[%emt 0:00:03]} 33. Rc1 {[%emt 0:00:02]} f6 {[%emt 0:00:12]} 34. Nf3 {[%emt 0:00:09]} Rc4 {[%emt 0:00:01]} 35. b5 {[%emt 0:00:00]} Ba3 {[%emt 0:00:02]} 36. Rc2 {[%emt 0:00:01]} Bb2 {[%emt 0:00:00]} 37. Kf1 {[%emt 0:00:04]} Rb4 {[%emt 0:00:01]} 38. Ng1 {[%emt 0:00:01]} Rxb5 {[%emt 0:00:00]} 39. Ke2 {[%emt 0:00:00]} Rc5 {[%emt 0:00:01]} 40. Kd3 {[%emt 0:00:01]} Kf7 {[%emt 0:00:01]} 41. Ne2 {[%emt 0:00:00]} Ke6 {[%emt 0:00:03]} 42. Nxc3 {[%emt 0:00:01]} Bxc3 {[%emt 0:00:01]} 43. Rxc3 {[%emt 0:00:00]} Rxc3+ {[%emt 0:00:00]} 44. Kxc3 {[%emt 0:00:00]} Ke5 {[%emt 0:00:01]} 45. Kd3 {[%emt 0:00:01]} f5 {[%emt 0:00:01]} 46. Ke3 {[%emt 0:00:00]} g5 {[%emt 0:00:00]} 47. f4+ {[%emt 0:00:01]} gxf4+ {[%emt 0:00:01]} 48. gxf4+ {[%emt 0:00:00]} Kd5 {[%emt 0:00:01]} 49. Kd3 {[%emt 0:00:01]} h5 {[%emt 0:00:01]} 50. h4 {[%emt 0:00:00]} Kc5 {[%emt 0:00:01]} 51. Kc3 {[%emt 0:00:01]} Kd5 {[%emt 0:00:00]} 52. Kd3 {[%emt 0:00:00]} Kc5 {[%emt 0:00:00]} 53. Kc3 {[%emt 0:00:01]} Kd5 {[%emt 0:00:01]} 54. Kd3 {[%emt 0:00:00]} 1/2-1/2

[Event "Speed Chess Championship 2020"]
[Site "Online"]
[Date "2020.11.11"]
[Round "1.22"]
[White "Aronian, Levon"]
[Black "Nepomniachtchi, Ian"]
[Result "1-0"]
[ECO "C15"]
[WhiteElo "2781"]
[BlackElo "2784"]
[Annotator "ChessBase"]
[PlyCount "83"]
[EventDate "2020.10.31"]
[EventType "k.o."]
[SourceTitle "playchess.com"]
[Source "ChessBase"]
[SourceQuality "1"]
[TimeControl "60+1"]

1. e4 {[%emt 0:00:01]} e6 {[%emt 0:00:01]} 2. d4 {[%emt 0:00:01]} d5 {[%emt 0:00:00]} 3. Nc3 {[%emt 0:00:00]} Bb4 {[%emt 0:00:00]} 4. Bd3 {[%emt 0:00:01]} Ne7 {[%emt 0:00:00]} 5. Nge2 {[%emt 0:00:04]} c5 {[%emt 0:00:01]} 6. exd5 {[%emt 0:00:06]} exd5 {[%emt 0:00:01]} 7. dxc5 {[%emt 0:00:04]} Nbc6 {[%emt 0:00:01]} 8. O-O {[%emt 0:00:02]} Bxc5 {[%emt 0:00:01]} 9. Bg5 {[%emt 0:00:01]} h6 {[%emt 0:00:01]} 10. Bh4 {[%emt 0:00:01]} Bg4 {[%emt 0:00:00]} 11. Qd2 {[%emt 0:00:03]} O-O {[%emt 0:00:01]} 12. h3 {[%emt 0:00:01]} Bh5 {[%emt 0:00:01]} 13. Nf4 {[%emt 0:00:03]} Bg6 {[%emt 0:00:15]} 14. Bxg6 {[%emt 0:00:01]} fxg6 {[%emt 0:00:00]} 15. Nxg6 {[%emt 0:00:00]} Rf7 {[%emt 0:00:03]} 16. Bxe7 {[%emt 0:00:02]} Nxe7 {[%emt 0:00:01]} 17. Nxe7+ {[%emt 0:00:01]} Rxe7 {[%emt 0:00:02]} 18. Nxd5 {[%emt 0:00:04]} Re5 {[%emt 0:00:01]} 19. c4 {[%emt 0:00:02]} Qh4 {[%emt 0:00:01]} 20. Rae1 {[%emt 0:00:14]} Rxe1 {[%emt 0:00:03]} 21. Rxe1 {[%emt 0:00:00]} Rf8 {[%emt 0:00:00]} 22. Ne3 {[%emt 0:00:03]} Kh8 {[%emt 0:00:03]} 23. Re2 {[%emt 0:00:09]} Qf4 {[%emt 0:00:04]} 24. b3 {[%emt 0:00:04]} Qe4 {[%emt 0:00:04]} 25. Qc2 {[%emt 0:00:03]} Qe5 {[%emt 0:00:02]} 26. g3 {[%emt 0:00:03]} Qf6 {[%emt 0:00:11]} 27. Qe4 {[%emt 0:00:04]} Qf7 {[%emt 0:00:03]} 28. Kg2 {[%emt 0:00:03]} Re8 {[%emt 0:00:01]} 29. Qf3 {[%emt 0:00:00]} Qe7 {[%emt 0:00:00]} 30. Rd2 {[%emt 0:00:02]} Rf8 {[%emt 0:00:01]} 31. Qe2 {[%emt 0:00:05]} Qe4+ {[%emt 0:00:01]} 32. Kh2 {[%emt 0:00:01]} Re8 {[%emt 0:00:03]} 33. Qd3 {[%emt 0:00:01]} Qe6 {[%emt 0:00:04]} 34. Ng2 {[%emt 0:00:01]} Qf7 {[%emt 0:00:04]} 35. Nf4 {[%emt 0:00:01]} g5 {[%emt 0:00:01]} 36. Nd5 {[%emt 0:00:02]} Bxf2 {[%emt 0:00:02]} 37. Qc3+ {[%emt 0:00:00]} Kh7 {[%emt 0:00:06]} 38. Nf6+ {[%emt 0:00:01]} Kg6 {[%emt 0:00:00]} 39. Rxf2 {[%emt 0:00:00]} Re6 {[%emt 0:00:02]} 40. Qd3+ {[%emt 0:00:01]} Kg7 {[%emt 0:00:01]} 41. Qh7+ {[%emt 0:00:01]} Kf8 {[%emt 0:00:01]} 42. Nd7+ {[%emt 0:00:00]} 1-0